[Event "*** SCC Grand Prix: Titled Tuesday Blitz"]
[Site "Chess.com"]
[Date "2020.08.04"]
[Round "10"]
[White "ClydeHillKid"]
[Black "Euge_chess"]
[Result "1/2-1/2"]
[WhiteElo "2302"]
[BlackElo "2068"]
[TimeControl "180+1"]
[EndTime "15:39:05 PDT"]
[Termination "Game drawn by stalemate"]

1. e4 {[%clk 0:03:00.8]} 1... e5 {[%clk 0:02:58.5]} 2. Nf3 {[%clk 0:03:00.2]}
2... Nc6 {[%clk 0:02:57.9]} 3. Bc4 {[%clk 0:03:00.1]} 3... Nf6 {[%clk 0:02:58]}
4. d3 {[%clk 0:02:59.2]} 4... d5 {[%clk 0:02:58.2]} 5. exd5 {[%clk 0:02:59]}
5... Nxd5 {[%clk 0:02:58.4]} 6. O-O {[%clk 0:02:57.6]} 6... Be6 {[%clk
0:02:55.3]} 7. Re1 {[%clk 0:02:51.3]} 7... Qd6 {[%clk 0:02:55.1]} 8. Nbd2 {[%clk
0:02:47.5]} 8... O-O-O {[%clk 0:02:54.2]} 9. Ne4 {[%clk 0:02:44.6]} 9... Qd7
{[%clk 0:02:53.5]} 10. Bb5 {[%clk 0:02:33.8]} 10... f6 {[%clk 0:02:40.6]} 11. d4
{[%clk 0:02:23.1]} 11... Nb6 {[%clk 0:02:29.9]} 12. Be3 {[%clk 0:02:15.7]} 12...
Bg4 {[%clk 0:01:58.9]} 13. dxe5 {[%clk 0:02:04.3]} 13... Qxd1 {[%clk 0:01:51.8]}
14. Raxd1 {[%clk 0:02:03.5]} 14... Rxd1 {[%clk 0:01:51]} 15. Rxd1 {[%clk
0:02:04.4]} 15... Bxf3 {[%clk 0:01:48]} 16. gxf3 {[%clk 0:02:00.7]} 16... Nxe5
{[%clk 0:01:47.3]} 17. Kg2 {[%clk 0:01:55]} 17... c6 {[%clk 0:01:41.5]} 18. Be2
{[%clk 0:01:52.7]} 18... Nd5 {[%clk 0:01:35.8]} 19. f4 {[%clk 0:01:49.5]} 19...
Ng6 {[%clk 0:01:28.1]} 20. c4 {[%clk 0:01:34.1]} 20... Ndxf4+ {[%clk 0:01:26.3]}
21. Kf3 {[%clk 0:01:20.4]} 21... Nxe2 {[%clk 0:01:24.9]} 22. Kxe2 {[%clk
0:01:21.3]} 22... Ne5 {[%clk 0:01:22.5]} 23. b3 {[%clk 0:01:16.6]} 23... Bb4
{[%clk 0:01:20.5]} 24. Bxa7 {[%clk 0:01:13.3]} 24... Re8 {[%clk 0:01:18.4]} 25.
Be3 {[%clk 0:00:48.2]} 25... Nxc4 {[%clk 0:01:13.2]} 26. Rd4 {[%clk 0:00:24.6]}
26... Nxe3 {[%clk 0:01:10.4]} 27. Rxb4 {[%clk 0:00:24]} 27... Nd5 {[%clk
0:01:08.3]} 28. Ra4 {[%clk 0:00:15.3]} 28... Nc3+ {[%clk 0:01:05.1]} 29. Kd3
{[%clk 0:00:13.4]} 29... Nxa4 {[%clk 0:01:01.2]} 30. Nd6+ {[%clk 0:00:13.3]}
30... Kd7 {[%clk 0:00:59.9]} 31. Nxe8 {[%clk 0:00:13.4]} 31... Nc5+ {[%clk
0:00:58.1]} 32. Kc4 {[%clk 0:00:13]} 32... Kxe8 {[%clk 0:00:47.4]} 33. Kxc5
{[%clk 0:00:12.6]} 33... Kd7 {[%clk 0:00:46.8]} 34. Kb6 {[%clk 0:00:09.8]} 34...
Kc8 {[%clk 0:00:46.4]} 35. f4 {[%clk 0:00:05.1]} 35... g5 {[%clk 0:00:46.2]} 36.
fxg5 {[%clk 0:00:03.5]} 36... fxg5 {[%clk 0:00:45.8]} 37. Kc5 {[%clk 0:00:03.7]}
37... Kc7 {[%clk 0:00:44.9]} 38. a4 {[%clk 0:00:02.7]} 38... b6+ {[%clk
0:00:43.7]} 39. Kd4 {[%clk 0:00:02.8]} 39... Kd6 {[%clk 0:00:43.8]} 40. Ke4
{[%clk 0:00:03.3]} 40... Ke6 {[%clk 0:00:43.3]} 41. b4 {[%clk 0:00:02.9]} 41...
h5 {[%clk 0:00:42.2]} 42. a5 {[%clk 0:00:02.1]} 42... bxa5 {[%clk 0:00:41]} 43.
bxa5 {[%clk 0:00:03]} 43... Kd6 {[%clk 0:00:41.1]} 44. Kf5 {[%clk 0:00:03.5]}
44... c5 {[%clk 0:00:40.3]} 45. Kxg5 {[%clk 0:00:03.9]} 45... c4 {[%clk
0:00:40.3]} 46. Kxh5 {[%clk 0:00:04.1]} 46... c3 {[%clk 0:00:40.2]} 47. a6
{[%clk 0:00:04]} 47... Kc7 {[%clk 0:00:35.9]} 48. a7 {[%clk 0:00:04.9]} 48...
Kb7 {[%clk 0:00:35.6]} 49. Kg6 {[%clk 0:00:05.4]} 49... Kxa7 {[%clk 0:00:35.4]}
50. h4 {[%clk 0:00:06.3]} 50... c2 {[%clk 0:00:35.7]} 51. h5 {[%clk 0:00:06.9]}
51... c1=Q {[%clk 0:00:35.8]} 52. h6 {[%clk 0:00:07.5]} 52... Qg1+ {[%clk
0:00:34.9]} 53. Kf7 {[%clk 0:00:06.9]} 53... Qf2+ {[%clk 0:00:34.5]} 54. Kg8
{[%clk 0:00:06.6]} 54... Qg3+ {[%clk 0:00:34.3]} 55. Kh8 {[%clk 0:00:03.8]}
55... Qc3+ {[%clk 0:00:29.6]} 56. Kg8 {[%clk 0:00:03.7]} 56... Qg3+ {[%clk
0:00:27]} 57. Kh8 {[%clk 0:00:02.9]} 57... Kb6 {[%clk 0:00:23.8]} 58. h7 {[%clk
0:00:02.8]} 58... Qf4 {[%clk 0:00:20.6]} 59. Kg8 {[%clk 0:00:03.7]} 59... Qg5+
{[%clk 0:00:20.3]} 60. Kh8 {[%clk 0:00:03.9]} 60... Qf6+ {[%clk 0:00:19.4]} 61.
Kg8 {[%clk 0:00:04.1]} 61... Qd8+ {[%clk 0:00:17.1]} 62. Kg7 {[%clk 0:00:04.2]}
62... Qe7+ {[%clk 0:00:16.8]} 63. Kg8 {[%clk 0:00:04.5]} 63... Qe8+ {[%clk
0:00:15.5]} 64. Kg7 {[%clk 0:00:04.7]} 64... Qe5+ {[%clk 0:00:15.1]} 65. Kg8
{[%clk 0:00:04.8]} 65... Qg5+ {[%clk 0:00:13.2]} 66. Kh8 {[%clk 0:00:05.1]}
66... Kc7 {[%clk 0:00:11.8]} 1/2-1/2

[Event "*** SCC Grand Prix: Titled Tuesday Blitz"]
[Site "Chess.com"]
[Date "2020.08.04"]
[Round "10"]
[White "Evgeny81"]
[Black "PotapovaM"]
[Result "0-1"]
[WhiteElo "2733"]
[BlackElo "2549"]
[TimeControl "180+1"]
[EndTime "15:39:06 PDT"]
[Termination "PotapovaM won on time"]

1. d4 {[%clk 0:03:00.9]} 1... Nf6 {[%clk 0:02:56.6]} 2. c4 {[%clk 0:03:01]} 2...
e6 {[%clk 0:02:56.4]} 3. Nc3 {[%clk 0:03:00.5]} 3... Bb4 {[%clk 0:02:55.9]} 4.
e3 {[%clk 0:03:01.1]} 4... O-O {[%clk 0:02:55.6]} 5. Bd3 {[%clk 0:03:01.3]} 5...
d5 {[%clk 0:02:55.2]} 6. Nf3 {[%clk 0:03:01.6]} 6... dxc4 {[%clk 0:02:55.4]} 7.
Bxc4 {[%clk 0:03:01.8]} 7... c5 {[%clk 0:02:55.7]} 8. O-O {[%clk 0:03:02.1]}
8... cxd4 {[%clk 0:02:56.2]} 9. exd4 {[%clk 0:03:02.7]} 9... b6 {[%clk
0:02:56.6]} 10. Bg5 {[%clk 0:03:01.6]} 10... Bb7 {[%clk 0:02:56.8]} 11. Ne5
{[%clk 0:03:01.2]} 11... h6 {[%clk 0:02:29]} 12. Bh4 {[%clk 0:02:59.6]} 12...
Nbd7 {[%clk 0:02:19.9]} 13. Nxd7 {[%clk 0:02:59.5]} 13... Qxd7 {[%clk
0:02:20.8]} 14. Bxf6 {[%clk 0:02:59.9]} 14... gxf6 {[%clk 0:02:21.7]} 15. Qg4+
{[%clk 0:02:59.6]} 15... Kh7 {[%clk 0:02:13.4]} 16. Bd3+ {[%clk 0:02:39.1]}
16... f5 {[%clk 0:02:07.7]} 17. Qh4 {[%clk 0:02:23.5]} 17... Rg8 {[%clk
0:01:57.2]} 18. f3 {[%clk 0:02:22.7]} 18... Be7 {[%clk 0:01:50.1]} 19. Qf2
{[%clk 0:02:22.7]} 19... Bf6 {[%clk 0:01:49.4]} 20. Ne2 {[%clk 0:02:21.7]} 20...
Rg7 {[%clk 0:01:37.5]} 21. Rad1 {[%clk 0:02:18.9]} 21... Rag8 {[%clk 0:01:37.1]}
22. g3 {[%clk 0:02:18.4]} 22... h5 {[%clk 0:01:29.4]} 23. Bb1 {[%clk 0:02:14.5]}
23... h4 {[%clk 0:01:24.3]} 24. Kg2 {[%clk 0:02:14.9]} 24... Ba6 {[%clk
0:01:03.1]} 25. Bd3 {[%clk 0:02:11.2]} 25... Bb7 {[%clk 0:01:00.6]} 26. Rg1
{[%clk 0:01:52]} 26... Kh8 {[%clk 0:00:56.4]} 27. Kf1 {[%clk 0:01:46.4]} 27...
Qa4 {[%clk 0:00:45.5]} 28. Rd2 {[%clk 0:01:38.2]} 28... Qxa2 {[%clk 0:00:44.2]}
29. Qe3 {[%clk 0:01:32]} 29... Rg6 {[%clk 0:00:39.4]} 30. Nf4 {[%clk 0:01:29.6]}
30... Rg5 {[%clk 0:00:28.6]} 31. Nh3 {[%clk 0:01:23.7]} 31... R5g6 {[%clk
0:00:26]} 32. Nf4 {[%clk 0:01:24]} 32... Rg5 {[%clk 0:00:26.2]} 33. Kf2 {[%clk
0:01:16.8]} 33... Qa4 {[%clk 0:00:24.9]} 34. Bc2 {[%clk 0:01:15.3]} 34... Qb4
{[%clk 0:00:23]} 35. Ne2 {[%clk 0:01:06.7]} 35... R5g6 {[%clk 0:00:10.3]} 36.
gxh4 {[%clk 0:01:04.6]} 36... Bxh4+ {[%clk 0:00:10.1]} 37. Kf1 {[%clk
0:01:00.5]} 37... Rxg1+ {[%clk 0:00:07.5]} 38. Nxg1 {[%clk 0:01:01.4]} 38... Bg5
{[%clk 0:00:07.6]} 39. f4 {[%clk 0:00:57.9]} 39... Bh6 {[%clk 0:00:08]} 40. Qh3
{[%clk 0:00:46.7]} 40... Kh7 {[%clk 0:00:07.7]} 41. Qe3 {[%clk 0:00:33.9]} 41...
Qb5+ {[%clk 0:00:06.4]} 42. Bd3 {[%clk 0:00:32.6]} 42... Qa5 {[%clk 0:00:06]}
43. Rd1 {[%clk 0:00:09.4]} 43... Rg4 {[%clk 0:00:05.6]} 44. Ne2 {[%clk
0:00:08.5]} 44... Bg2+ {[%clk 0:00:05]} 45. Kf2 {[%clk 0:00:08.3]} 45... Bb7
{[%clk 0:00:03.6]} 46. h3 {[%clk 0:00:08.3]} 46... Rg2+ {[%clk 0:00:03]} 47. Kf1
{[%clk 0:00:08.1]} 47... Rg6 {[%clk 0:00:03.7]} 48. Bc2 {[%clk 0:00:05.8]} 48...
Qd5 {[%clk 0:00:04.1]} 49. Ke1 {[%clk 0:00:05.3]} 49... Qh1+ {[%clk 0:00:04]}
50. Kd2 {[%clk 0:00:05.6]} 50... Qc6 {[%clk 0:00:04.9]} 51. Bd3 {[%clk
0:00:05.1]} 51... Qd6 {[%clk 0:00:04.6]} 52. Rf1 {[%clk 0:00:04.5]} 52... Qb4+
{[%clk 0:00:04.8]} 53. Kc2 {[%clk 0:00:04.3]} 53... Rg8 {[%clk 0:00:05.3]} 54.
Rc1 {[%clk 0:00:03.6]} 54... Bd5 {[%clk 0:00:04.7]} 55. Kb1 {[%clk 0:00:02.7]}
55... Qb3 {[%clk 0:00:04.5]} 56. Nc3 {[%clk 0:00:03]} 56... Rg2 {[%clk
0:00:03.4]} 57. Bc2 {[%clk 0:00:01.6]} 57... Qc4 {[%clk 0:00:02.6]} 0-1

[Event "*** SCC Grand Prix: Titled Tuesday Blitz"]
[Site "Chess.com"]
[Date "2020.08.04"]
[Round "10"]
[White "rynos0411"]
[Black "Iskusnyh"]
[Result "0-1"]
[WhiteElo "2389"]
[BlackElo "2569"]
[TimeControl "180+1"]
[EndTime "15:39:06 PDT"]
[Termination "Iskusnyh won by resignation"]

1. d4 {[%clk 0:02:55.2]} 1... d5 {[%clk 0:02:59]} 2. c4 {[%clk 0:02:55.5]} 2...
c6 {[%clk 0:02:58.8]} 3. Nf3 {[%clk 0:02:55.2]} 3... Nf6 {[%clk 0:02:58.5]} 4.
Nc3 {[%clk 0:02:52]} 4... a6 {[%clk 0:02:58]} 5. cxd5 {[%clk 0:02:50.4]} 5...
cxd5 {[%clk 0:02:57.5]} 6. Bf4 {[%clk 0:02:49.1]} 6... Nc6 {[%clk 0:02:57.5]} 7.
e3 {[%clk 0:02:49.2]} 7... Bg4 {[%clk 0:02:57.5]} 8. Be2 {[%clk 0:02:49.1]} 8...
e6 {[%clk 0:02:57.6]} 9. O-O {[%clk 0:02:49]} 9... Be7 {[%clk 0:02:57.7]} 10. h3
{[%clk 0:02:45.1]} 10... Bxf3 {[%clk 0:02:57.2]} 11. Bxf3 {[%clk 0:02:46]} 11...
O-O {[%clk 0:02:57.4]} 12. Rc1 {[%clk 0:02:44.6]} 12... Rc8 {[%clk 0:02:48.3]}
13. Re1 {[%clk 0:02:36.6]} 13... Bd6 {[%clk 0:02:37.9]} 14. Bxd6 {[%clk
0:02:22.1]} 14... Qxd6 {[%clk 0:02:37.4]} 15. Na4 {[%clk 0:02:21.4]} 15... Nd7
{[%clk 0:02:37]} 16. a3 {[%clk 0:02:16.9]} 16... Ne7 {[%clk 0:02:28.4]} 17. b4
{[%clk 0:02:13.5]} 17... b6 {[%clk 0:02:01.6]} 18. Qd3 {[%clk 0:02:02.5]} 18...
Rc4 {[%clk 0:01:54]} 19. Nb2 {[%clk 0:01:46.3]} 19... Rxc1 {[%clk 0:01:52.9]}
20. Rxc1 {[%clk 0:01:45]} 20... b5 {[%clk 0:01:53.3]} 21. Qb3 {[%clk 0:01:36.3]}
21... Nb6 {[%clk 0:01:50.3]} 22. Nd3 {[%clk 0:01:25.8]} 22... Nc4 {[%clk
0:01:43.8]} 23. Nc5 {[%clk 0:01:21.5]} 23... g6 {[%clk 0:01:37.1]} 24. a4 {[%clk
0:01:17.7]} 24... Rb8 {[%clk 0:01:30.3]} 25. axb5 {[%clk 0:01:14.5]} 25... axb5
{[%clk 0:01:26.9]} 26. Ra1 {[%clk 0:01:12.4]} 26... Qd8 {[%clk 0:00:56.5]} 27.
Ra6 {[%clk 0:01:05.5]} 27... Ra8 {[%clk 0:00:50.3]} 28. Qa2 {[%clk 0:01:05.1]}
28... Rxa6 {[%clk 0:00:49.4]} 29. Qxa6 {[%clk 0:01:06]} 29... Qb8 {[%clk
0:00:40.5]} 30. Nd7 {[%clk 0:00:55.7]} 30... Qc8 {[%clk 0:00:19]} 31. Qxb5
{[%clk 0:00:44.9]} 31... Nd2 {[%clk 0:00:19.2]} 32. Qb8 {[%clk 0:00:33]} 32...
Kg7 {[%clk 0:00:18.1]} 33. Qxc8 {[%clk 0:00:31.7]} 33... Nxc8 {[%clk 0:00:18.6]}
34. Be2 {[%clk 0:00:30.8]} 34... Nd6 {[%clk 0:00:15]} 35. b5 {[%clk 0:00:28.7]}
35... N2c4 {[%clk 0:00:14.3]} 36. b6 {[%clk 0:00:28.4]} 36... Na5 {[%clk
0:00:13.9]} 37. Nc5 {[%clk 0:00:25.6]} 37... Nc6 {[%clk 0:00:13.5]} 38. Ba6
{[%clk 0:00:21.2]} 38... Nb8 {[%clk 0:00:11.3]} 39. Bd3 {[%clk 0:00:12.6]} 39...
Kf8 {[%clk 0:00:10.9]} 40. Na6 {[%clk 0:00:06.6]} 40... Nc6 {[%clk 0:00:07.8]}
41. Kf1 {[%clk 0:00:03]} 41... Ke7 {[%clk 0:00:07.5]} 42. Nc5 {[%clk 0:00:03.4]}
42... Kd8 {[%clk 0:00:07.3]} 43. Ke2 {[%clk 0:00:03.4]} 43... Nb8 {[%clk
0:00:07.3]} 44. f3 {[%clk 0:00:03.3]} 44... Nc8 {[%clk 0:00:06.1]} 45. b7 {[%clk
0:00:02.7]} 45... Nd6 {[%clk 0:00:06.2]} 46. e4 {[%clk 0:00:03.2]} 46... Kc7
{[%clk 0:00:06.1]} 47. exd5 {[%clk 0:00:02.8]} 47... exd5 {[%clk 0:00:06.5]} 48.
Ke3 {[%clk 0:00:03.5]} 48... Nxb7 {[%clk 0:00:06.5]} 49. Nxb7 {[%clk 0:00:04.4]}
49... Kxb7 {[%clk 0:00:06.5]} 50. Kf4 {[%clk 0:00:05.3]} 50... Kc6 {[%clk
0:00:06.6]} 51. Bc2 {[%clk 0:00:05.1]} 51... Kd6 {[%clk 0:00:05.6]} 52. Kg5
{[%clk 0:00:05.3]} 52... Ke7 {[%clk 0:00:05.1]} 53. Kh6 {[%clk 0:00:05.4]} 53...
Nc6 {[%clk 0:00:05.3]} 54. Kxh7 {[%clk 0:00:05.2]} 54... Nxd4 {[%clk 0:00:05.5]}
55. Bd3 {[%clk 0:00:06.1]} 55... Ne6 {[%clk 0:00:04.5]} 56. Kh6 {[%clk
0:00:06.1]} 56... Nf4 {[%clk 0:00:04.4]} 57. Bf1 {[%clk 0:00:06.5]} 57... d4
{[%clk 0:00:04.8]} 58. g3 {[%clk 0:00:07]} 58... Ne6 {[%clk 0:00:04.1]} 59. h4
{[%clk 0:00:05.7]} 59... Nc5 {[%clk 0:00:03.8]} 60. h5 {[%clk 0:00:05.6]} 60...
gxh5 {[%clk 0:00:03.1]} 61. Kxh5 {[%clk 0:00:06.5]} 61... d3 {[%clk 0:00:03.5]}
62. g4 {[%clk 0:00:06.9]} 62... d2 {[%clk 0:00:03.4]} 63. Be2 {[%clk 0:00:07.2]}
63... Nd3 {[%clk 0:00:03.8]} 64. g5 {[%clk 0:00:06]} 64... Nf4+ {[%clk
0:00:03.7]} 65. Kg4 {[%clk 0:00:06.9]} 65... Nxe2 {[%clk 0:00:03.8]} 0-1

[Event "*** SCC Grand Prix: Titled Tuesday Blitz"]
[Site "Chess.com"]
[Date "2020.08.04"]
[Round "10"]
[White "tlomigtlis"]
[Black "Goryachkina"]
[Result "0-1"]
[WhiteElo "2430"]
[BlackElo "2581"]
[TimeControl "180+1"]
[EndTime "15:39:07 PDT"]
[Termination "Goryachkina won by checkmate"]

1. d4 {[%clk 0:03:00.9]} 1... d5 {[%clk 0:02:59.9]} 2. c4 {[%clk 0:03:00.7]}
2... e6 {[%clk 0:03:00.2]} 3. Nc3 {[%clk 0:03:00.4]} 3... Nf6 {[%clk 0:02:59.9]}
4. cxd5 {[%clk 0:02:59.1]} 4... exd5 {[%clk 0:03:00.8]} 5. Bg5 {[%clk
0:02:59.1]} 5... c6 {[%clk 0:03:00.6]} 6. Qc2 {[%clk 0:02:58.5]} 6... h6 {[%clk
0:02:59.1]} 7. Bh4 {[%clk 0:02:58.1]} 7... g6 {[%clk 0:02:59.3]} 8. Nxd5 {[%clk
0:02:39.3]} 8... Qxd5 {[%clk 0:02:44.2]} 9. Bxf6 {[%clk 0:02:38.4]} 9... Bb4+
{[%clk 0:02:44.2]} 10. Kd1 {[%clk 0:02:35.1]} 10... O-O {[%clk 0:02:43.6]} 11.
e4 {[%clk 0:02:18.8]} 11... Qd6 {[%clk 0:02:41.6]} 12. Be5 {[%clk 0:02:12.3]}
12... Qe7 {[%clk 0:02:39.9]} 13. a3 {[%clk 0:02:08]} 13... Bd6 {[%clk 0:02:35]}
14. Bxd6 {[%clk 0:02:04.1]} 14... Qxd6 {[%clk 0:02:35.9]} 15. Nf3 {[%clk
0:02:04.4]} 15... Bg4 {[%clk 0:02:35]} 16. Be2 {[%clk 0:01:58.9]} 16... Bxf3
{[%clk 0:02:32.7]} 17. Bxf3 {[%clk 0:01:59.8]} 17... Qxd4+ {[%clk 0:02:33.1]}
18. Ke2 {[%clk 0:01:59.1]} 18... Na6 {[%clk 0:02:32.8]} 19. Rad1 {[%clk
0:01:58.3]} 19... Qe5 {[%clk 0:02:32.6]} 20. g3 {[%clk 0:01:56.4]} 20... Nc5
{[%clk 0:02:28.6]} 21. Rhe1 {[%clk 0:01:54.3]} 21... Ne6 {[%clk 0:02:23.8]} 22.
Kf1 {[%clk 0:01:34.1]} 22... Rad8 {[%clk 0:02:12.2]} 23. Qb3 {[%clk 0:01:25.5]}
23... Nd4 {[%clk 0:01:53.6]} 24. Qc3 {[%clk 0:01:18.4]} 24... Nxf3 {[%clk
0:01:42.6]} 25. Qxf3 {[%clk 0:01:12]} 25... Rxd1 {[%clk 0:01:41.9]} 26. Rxd1
{[%clk 0:01:12.9]} 26... Qxb2 {[%clk 0:01:42.1]} 27. Rd7 {[%clk 0:01:10]} 27...
a5 {[%clk 0:01:30.5]} 28. h4 {[%clk 0:01:06.9]} 28... c5 {[%clk 0:01:27]} 29.
Kg2 {[%clk 0:01:00.2]} 29... b5 {[%clk 0:01:24]} 30. h5 {[%clk 0:00:59.3]} 30...
g5 {[%clk 0:01:18]} 31. Qf5 {[%clk 0:00:57.2]} 31... b4 {[%clk 0:01:11.3]} 32.
axb4 {[%clk 0:00:37.5]} 32... cxb4 {[%clk 0:01:09.2]} 33. e5 {[%clk 0:00:35.9]}
33... Qc3 {[%clk 0:00:43.1]} 34. Qf6 {[%clk 0:00:26.4]} 34... b3 {[%clk
0:00:28.3]} 35. Rb7 {[%clk 0:00:18.4]} 35... b2 {[%clk 0:00:25]} 36. Qxh6 {[%clk
0:00:17.2]} 36... Qxe5 {[%clk 0:00:23]} 37. Qc6 {[%clk 0:00:15]} 37... a4 {[%clk
0:00:19.6]} 38. Qxa4 {[%clk 0:00:13]} 38... Qd5+ {[%clk 0:00:19.4]} 39. f3
{[%clk 0:00:12.1]} 39... Qxb7 {[%clk 0:00:19.3]} 40. Qa5 {[%clk 0:00:09.3]}
40... b1=Q {[%clk 0:00:14.1]} 41. Qxg5+ {[%clk 0:00:09]} 41... Kh8 {[%clk
0:00:14.4]} 42. Qh6+ {[%clk 0:00:07.8]} 42... Kg8 {[%clk 0:00:12.4]} 43. Qg5+
{[%clk 0:00:07.5]} 43... Qg6 {[%clk 0:00:12.1]} 44. hxg6 {[%clk 0:00:07.2]}
44... fxg6 {[%clk 0:00:12.3]} 45. Qxg6+ {[%clk 0:00:07.3]} 45... Qg7 {[%clk
0:00:12.4]} 46. Qe6+ {[%clk 0:00:07.9]} 46... Qf7 {[%clk 0:00:12.9]} 47. Qg4+
{[%clk 0:00:07.8]} 47... Qg7 {[%clk 0:00:13.3]} 48. Qe6+ {[%clk 0:00:07.8]}
48... Rf7 {[%clk 0:00:13.7]} 49. Qc8+ {[%clk 0:00:07.1]} 49... Kh7 {[%clk
0:00:14]} 50. Qh3+ {[%clk 0:00:07.1]} 50... Qh6 {[%clk 0:00:14]} 51. Qc8 {[%clk
0:00:06.4]} 51... Qd2+ {[%clk 0:00:13.6]} 52. Kh3 {[%clk 0:00:06.7]} 52... Qd7+
{[%clk 0:00:13.7]} 53. Qxd7 {[%clk 0:00:07]} 53... Rxd7 {[%clk 0:00:14.6]} 54.
g4 {[%clk 0:00:07.6]} 54... Kg6 {[%clk 0:00:14.8]} 55. Kg3 {[%clk 0:00:08.5]}
55... Rd3 {[%clk 0:00:14.1]} 56. Kf4 {[%clk 0:00:08.2]} 56... Ra3 {[%clk
0:00:14.2]} 57. Ke4 {[%clk 0:00:08.3]} 57... Kg5 {[%clk 0:00:14.6]} 58. f4+
{[%clk 0:00:06.7]} 58... Kxg4 {[%clk 0:00:14.9]} 59. f5 {[%clk 0:00:07.6]} 59...
Ra4+ {[%clk 0:00:14.9]} 60. Ke5 {[%clk 0:00:07.8]} 60... Ra5+ {[%clk 0:00:15.4]}
61. Ke6 {[%clk 0:00:08.3]} 61... Rxf5 {[%clk 0:00:15.6]} 62. Kd6 {[%clk
0:00:09.2]} 62... Kf4 {[%clk 0:00:15.3]} 63. Ke6 {[%clk 0:00:10.1]} 63... Ke4
{[%clk 0:00:15.5]} 64. Kd6 {[%clk 0:00:11]} 64... Re5 {[%clk 0:00:15.8]} 65. Kc6
{[%clk 0:00:11]} 65... Kd4 {[%clk 0:00:16.2]} 66. Kd6 {[%clk 0:00:11.9]} 66...
Re4 {[%clk 0:00:14.1]} 67. Kc6 {[%clk 0:00:12.8]} 67... Re6+ {[%clk 0:00:12.4]}
68. Kd7 {[%clk 0:00:12.8]} 68... Kd5 {[%clk 0:00:12.7]} 69. Kc7 {[%clk
0:00:13.7]} 69... Re7+ {[%clk 0:00:12.6]} 70. Kd8 {[%clk 0:00:13.9]} 70... Kd6
{[%clk 0:00:12.5]} 71. Kc8 {[%clk 0:00:14.4]} 71... Rd7 {[%clk 0:00:12.7]} 72.
Kb8 {[%clk 0:00:14.3]} 72... Kc6 {[%clk 0:00:13]} 73. Kc8 {[%clk 0:00:14.8]}
73... Rc7+ {[%clk 0:00:12.3]} 74. Kb8 {[%clk 0:00:14.9]} 74... Kb6 {[%clk
0:00:12.7]} 75. Ka8 {[%clk 0:00:12.4]} 75... Rc8# {[%clk 0:00:13]} 0-1

[Event "*** SCC Grand Prix: Titled Tuesday Blitz"]
[Site "Chess.com"]
[Date "2020.08.04"]
[Round "10"]
[White "chenxiaoyuer"]
[Black "elcandado"]
[Result "1-0"]
[WhiteElo "2472"]
[BlackElo "2570"]
[TimeControl "180+1"]
[EndTime "15:39:09 PDT"]
[Termination "chenxiaoyuer won on time"]

1. e4 {[%clk 0:03:00.9]} 1... d6 {[%clk 0:02:59.1]} 2. d4 {[%clk 0:03:00.5]}
2... Nf6 {[%clk 0:02:58.6]} 3. Nc3 {[%clk 0:02:56.2]} 3... e5 {[%clk 0:02:58.3]}
4. Nf3 {[%clk 0:02:54.7]} 4... Nbd7 {[%clk 0:02:57.9]} 5. Bc4 {[%clk 0:02:49.2]}
5... Be7 {[%clk 0:02:57.6]} 6. O-O {[%clk 0:02:47.6]} 6... O-O {[%clk
0:02:57.2]} 7. Re1 {[%clk 0:02:43.2]} 7... c6 {[%clk 0:02:56.9]} 8. a4 {[%clk
0:02:42.5]} 8... a5 {[%clk 0:02:57.3]} 9. b3 {[%clk 0:02:41.5]} 9... exd4 {[%clk
0:02:53]} 10. Nxd4 {[%clk 0:02:40]} 10... Ne5 {[%clk 0:02:52.6]} 11. Bf1 {[%clk
0:02:35.6]} 11... d5 {[%clk 0:02:51.3]} 12. exd5 {[%clk 0:02:31.9]} 12... Bb4
{[%clk 0:02:50.8]} 13. Bd2 {[%clk 0:02:13.8]} 13... Qd6 {[%clk 0:02:48.7]} 14.
Qe2 {[%clk 0:01:37.3]} 14... Neg4 {[%clk 0:02:24]} 15. Nf3 {[%clk 0:01:36.2]}
15... Nxd5 {[%clk 0:02:11.4]} 16. Nxd5 {[%clk 0:01:33.8]} 16... Qxd5 {[%clk
0:02:10.5]} 17. Bxb4 {[%clk 0:01:27.5]} 17... axb4 {[%clk 0:02:09.3]} 18. Rad1
{[%clk 0:01:26.6]} 18... Qc5 {[%clk 0:02:07.1]} 19. h3 {[%clk 0:01:25.4]} 19...
Nf6 {[%clk 0:02:04.1]} 20. Qc4 {[%clk 0:01:25.1]} 20... Qxc4 {[%clk 0:01:59.8]}
21. Bxc4 {[%clk 0:01:21]} 21... Bf5 {[%clk 0:02:00]} 22. Nd4 {[%clk 0:01:18.7]}
22... Bg6 {[%clk 0:01:58.7]} 23. Bd3 {[%clk 0:01:07.5]} 23... Rfd8 {[%clk
0:01:44.6]} 24. Bxg6 {[%clk 0:01:02.8]} 24... hxg6 {[%clk 0:01:45.5]} 25. Nf3
{[%clk 0:00:58.5]} 25... Nd5 {[%clk 0:01:41.2]} 26. Rd4 {[%clk 0:00:56]} 26...
c5 {[%clk 0:01:32.5]} 27. Rde4 {[%clk 0:00:51.6]} 27... Kf8 {[%clk 0:01:26.7]}
28. Ne5 {[%clk 0:00:45.7]} 28... Nc3 {[%clk 0:01:18.2]} 29. Rf4 {[%clk
0:00:44.9]} 29... Re8 {[%clk 0:00:59.4]} 30. Rxf7+ {[%clk 0:00:38.4]} 30... Kg8
{[%clk 0:00:58.7]} 31. Rxb7 {[%clk 0:00:38.2]} 31... g5 {[%clk 0:00:53.8]} 32.
Nd3 {[%clk 0:00:24.4]} 32... Rxe1+ {[%clk 0:00:43.9]} 33. Nxe1 {[%clk
0:00:25.3]} 33... Ne2+ {[%clk 0:00:44]} 34. Kf1 {[%clk 0:00:22.2]} 34... Nd4
{[%clk 0:00:42.4]} 35. Rc7 {[%clk 0:00:19.4]} 35... Ne6 {[%clk 0:00:42.1]} 36.
Rc6 {[%clk 0:00:18.6]} 36... Kf7 {[%clk 0:00:41.5]} 37. Nd3 {[%clk 0:00:18.5]}
37... Rd8 {[%clk 0:00:38.8]} 38. Nxc5 {[%clk 0:00:16.1]} 38... Nf4 {[%clk
0:00:38.5]} 39. Kg1 {[%clk 0:00:12.4]} 39... Rd1+ {[%clk 0:00:34.7]} 40. Kh2
{[%clk 0:00:11.9]} 40... Rd2 {[%clk 0:00:33.1]} 41. Ne4 {[%clk 0:00:11.9]} 41...
Re2 {[%clk 0:00:32]} 42. Nxg5+ {[%clk 0:00:11.5]} 42... Ke8 {[%clk 0:00:31.3]}
43. Kg3 {[%clk 0:00:10]} 43... Nh5+ {[%clk 0:00:22.8]} 44. Kf3 {[%clk 0:00:10]}
44... Rd2 {[%clk 0:00:21.3]} 45. Ke3 {[%clk 0:00:07.3]} 45... Rd1 {[%clk
0:00:20]} 46. Ke2 {[%clk 0:00:06.6]} 46... Rc1 {[%clk 0:00:16]} 47. Kd2 {[%clk
0:00:05.7]} 47... Rf1 {[%clk 0:00:15.6]} 48. Ke2 {[%clk 0:00:05.8]} 48... Rc1
{[%clk 0:00:15.2]} 49. g3 {[%clk 0:00:06]} 49... Nf6 {[%clk 0:00:14.2]} 50. Rc4
{[%clk 0:00:05.8]} 50... Nd5 {[%clk 0:00:13]} 51. Ne4 {[%clk 0:00:06.2]} 51...
Kd7 {[%clk 0:00:10]} 52. a5 {[%clk 0:00:05.2]} 52... Ra1 {[%clk 0:00:09.5]} 53.
Rc5 {[%clk 0:00:05.2]} 53... Ke6 {[%clk 0:00:09.3]} 54. Rc6+ {[%clk 0:00:04.4]}
54... Ke5 {[%clk 0:00:08.4]} 55. Nc5 {[%clk 0:00:04]} 55... Nc3+ {[%clk
0:00:07.4]} 56. Ke3 {[%clk 0:00:03.1]} 56... Kd5 {[%clk 0:00:06.9]} 57. Rc7
{[%clk 0:00:02.7]} 57... Re1+ {[%clk 0:00:05.5]} 58. Kd2 {[%clk 0:00:01.6]}
58... Rd1+ {[%clk 0:00:04.9]} 59. Ke3 {[%clk 0:00:01.7]} 59... Re1+ {[%clk
0:00:04.6]} 60. Kf3 {[%clk 0:00:02.1]} 60... Rc1 {[%clk 0:00:04.3]} 61. Nd3
{[%clk 0:00:02.4]} 1-0